Cogmind - Beta 14 @@@ ROGUE MODE // 2024.10.20 @ 23:27:54 Player: ToasterKoishi Result: Destroyed by P-70 Sage with High-powered Shock Rifle Performance ------------- Evolutions (6) 3000 Regions Visited (8) 1600 Robots Destroyed (0) 0 Value Destroyed (10) 10 Prototype IDs (1) 20 Alien Tech Used (0) 0 Bonus (3380) 3380 TOTAL SCORE: 8010 Bonus ------- Pacifist 2880 Entered DSFs 500 Cogmind --------- Core Integrity 0/1150 Matter 227/300 Energy 100/100 System Corruption 1% Temperature Cool (0) Movement Core (50) Location -4/Factory Parts ------- > --- POWER (1) -------- (None) > --- PROPULSION (6) --- (None) > --- UTILITY (10) ----- Advanced Hacking Suite System Guard > --- WEAPON (2) ------- (None) > --- INVENTORY (5) ---- Advanced Sensor Array Improved Terrain Scanner Stasis Canceller Heavy Plasma Cannon Peak State ------------ > --- POWER ------------ (None) > --- PROPULSION ------- Nuclear Pulse Thruster Biomechanical Wings > --- UTILITY ---------- Hacking Suite Hacking Suite System Guard System Guard System Guard System Guard System Guard System Guard > --- WEAPON ----------- (None) > --- INVENTORY -------- Advanced Sensor Array Improved Terrain Scanner Heavy Plasma Cannon [Rating: 48] Favorites ----------- Power None Propulsion Biomechanical Wings Flight Unit Biomechanical Wings Utility System Guard Processor System Guard Hackware Hacking Suite Weapon Rocket Launcher Launcher Rocket Launcher Build | -11 -10 -9 -8 -7 -7 -6 -5 -4 ------- Run | Yrd Mat Mat Mat Fac DSF Fac Fac Fac Slots Evolved 12 | . . 2 2 2 . 2 2 2 Power . | . . . . . . . . . Propulsion 4 | . . 1 1 . . 1 1 . Utility 8 | . . 1 1 2 . 1 1 2 Weapon . | . . . . . . . . . Parts Attached 14 | . . 1 . 1 . 4 6 2 Power . | . . . . . . . . . Engine . | . . . . . . . . . Core . | . . . . . . . . . Reactor . | . . . . . . . . . Propulsion 3 | . . . . . . 2 . 1 Treads . | . . . . . . . . . Leg . | . . . . . . . . . Wheel . | . . . . . . . . . Hover . | . . . . . . . . . Flight 3 | . . . . . . 2 . 1 Utility 9 | . . . . 1 . 1 6 1 Device . | . . . . . . . . . Storage . | . . . . . . . . . Processor 6 | . . . . . . . 6 . Hackware 3 | . . . . 1 . 1 . 1 Protection . | . . . . . . . . . Artifact . | . . . . . . . . . Weapon 2 | . . 1 . . . 1 . . Energy Gun . | . . . . . . . . . Energy Cannon . | . . . . . . . . . Ballistic Gun . | . . . . . . . . . Ballistic Cannon . | . . . . . . . . . Launcher 2 | . . 1 . . . 1 . . Special Weapon . | . . . . . . . . . Impact Weapon . | . . . . . . . . . Slashing Weapon . | . . . . . . . . . Piercing Weapon . | . . . . . . . . . Special Melee Weapon . | . . . . . . . . . Unidentified Prototypes 1 | . . . . . . 1 . . Parts Lost 11 | . . . . . . 1 5 5 Power . | . . . . . . . . . Propulsion 3 | . . . . . . . 2 1 Utility 7 | . . . . . . . 3 4 Weapon 1 | . . . . . . 1 . . Highest Loss Streak 6 | . . . . . . 1 3 6 To Critical Strikes . | . . . . . . . . . Average Slot Usage (%) 15 | . . . . . 7 21 36 11 Flight 3 | . . . . . . 5 6 1 Processor 4 | . . . . . . . 17 6 Hackware 5 | . . . . . 7 10 10 3 Launcher 1 | . . . . . . 4 . . Peak Build Rating 48 | . . 2 . 3 3 19 48 24 Average Rating 11 | . . . . . 3 11 28 11 On Entrance 5 | . . . . . 3 3 17 24 Naked Turns 233 | . 19 97 69 48 . . . . Heaviest Build 4 | . . . . . . 4 . . Greatest Support 12 | 3 3 3 3 3 3 12 12 7 Greatest Overweight (x) 1 | . . . . . . 1 . . Average Overweight (x) . | . . . . . . . . . Largest Inventory Capacity 5 | 5 5 5 5 5 5 5 5 5 Average Capacity 5 | 5 5 5 5 5 5 5 5 5 Most Carried 4 | . . 1 2 3 2 3 3 4 Average Carried 2 | . . . 1 2 2 2 2 3 Final Capacity 5 | 5 5 5 5 5 5 5 5 5 Final Carried 4 | . . 1 2 2 2 2 3 4 Class Distribution -------------------- 64% | Mutant 35% | Hacker-Mutant Dominant Class ---------------- Mutant | -10/Materials Mutant | -9/Materials Mutant | -8/Materials Mutant | -7/Factory Mutant | -7/DSF Hacker-Mutant | -6/Factory Hacker-Mutant | -5/Factory Mutant | -4/Factory Resources | -11 -10 -9 -8 -7 -7 -6 -5 -4 ----------- Run | Yrd Mat Mat Mat Fac DSF Fac Fac Fac Matter Collected 147 | 147 . . . . . . . . Remotely . | . . . . . . . . . Salvage Created . | . . . . . . . . . Parts . | . . . . . . . . . Haulers Intercepted . | . . . . . . . . . Recyclers Shooed . | . . . . . . . . . Parts Field Recycled . | . . . . . . . . . Retrieved Matter . | . . . . . . . . . Parts Self-Destructed . | . . . . . . . . . Prevented . | . . . . . . . . . Kills | -11 -10 -9 -8 -7 -7 -6 -5 -4 ------- Run | Yrd Mat Mat Mat Fac DSF Fac Fac Fac Combat Hostiles Destroyed . | . . . . . . . . . Classes Destroyed . | . . . . . . . . . Best Kill Streak . | . . . . . . . . . Combat Bots Only . | . . . . . . . . . Max Kills in Single Turn . | . . . . . . . . . Gunslinging . | . . . . . . . . . Exploded . | . . . . . . . . . Melee . | . . . . . . . . . Uniques/NPCs Destroyed . | . . . . . . . . . Combat | -11 -10 -9 -8 -7 -7 -6 -5 -4 -------- Run | Yrd Mat Mat Mat Fac DSF Fac Fac Fac Hostile Shots Fired 273 | . . 6 26 . 9 41 89 102 Missed 115 | . . 5 7 . 3 19 46 35 Damage Taken 3016 | . . 56 311 . 171 289 928 1261 Core 2712 | . . 26 311 . 171 233 815 1156 Absorbed by Shields . | . . . . . . . . . Core Remaining (%) 71 | 100 100 93 43 . 75 72 18 . Volleys Fired 2 | . . 1 . . . 1 . . Largest 1 | . . 1 . . . 1 . . Hottest 33 | . . 33 . . . 33 . . Shots Fired 2 | . . 1 . . . 1 . . Gun . | . . . . . . . . . Cannon . | . . . . . . . . . Launcher 2 | . . 1 . . . 1 . . Special . | . . . . . . . . . Kinetic . | . . . . . . . . . Thermal . | . . . . . . . . . Explosive 2 | . . 1 . . . 1 . . Electromagnetic . | . . . . . . . . . Robot Hit Streak . | . . . . . . . . . Robot Miss Streak . | . . . . . . . . . Penetration Max . | . . . . . . . . . Secondary Targets . | . . . . . . . . . Shots Hit Robots . | . . . . . . . . . Core Hits 5 | . . . 2 . . . . 3 Critical Kills . | . . . . . . . . . Critical Parts Destroyed . | . . . . . . . . . Critical Strikes . | . . . . . . . . . Melee Attacks . | . . . . . . . . . Impact . | . . . . . . . . . Slashing . | . . . . . . . . . Piercing . | . . . . . . . . . Sneak Attacks . | . . . . . . . . . Combat Hostiles . | . . . . . . . . . Follow-up Attacks . | . . . . . . . . . Damage Inflicted 64 | . . . 35 . . . 7 22 Guns . | . . . . . . . . . Cannons . | . . . . . . . . . Explosions . | . . . . . . . . . Melee . | . . . . . . . . . Ramming 64 | . . . 35 . . . 7 22 Kinetic . | . . . . . . . . . Thermal . | . . . . . . . . . Explosive . | . . . . . . . . . Electromagnetic . | . . . . . . . . . Impact . | . . . . . . . . . Slashing . | . . . . . . . . . Piercing . | . . . . . . . . . Highest Corruption 1 | . . . . . . . . 1 Average Corruption 1 | . . . . . . . . 1 Corruption Purged . | . . . . . . . . . Corruption Blocked . | . . . . . . . . . Effects 1 | . . . . . . . . 1 Message Errors 1 | . . . . . . . . 1 Overload Shots . | . . . . . . . . . Overflow Damage . | . . . . . . . . . Projectiles . | . . . . . . . . . Explosions . | . . . . . . . . . Melee . | . . . . . . . . . Knockbacks . | . . . . . . . . . Impact . | . . . . . . . . . Kinetic . | . . . . . . . . . Secondary . | . . . . . . . . . Self-Inflicted Damage 70 | . . 45 15 . . . 2 8 Shots 1 | . . 1 . . . . . . Rammed 25 | . . . 12 . . . 3 10 Targets Rammed 25 | . . . 12 . . . 3 10 Kicked . | . . . . . . . . . Crushed . | . . . . . . . . . Highest Temperature . | . . . . . . . . . Average Temperature . | . . . . . . . . . Received Heat Transfer 636 | . . 6 162 . . 153 171 144 Siege Activations . | . . . . . . . . . Robots Corrupted . | . . . . . . . . . Combat Hostiles . | . . . . . . . . . Parts Fried . | . . . . . . . . . Impact Corruptions . | . . . . . . . . . Robots Melted . | . . . . . . . . . Combat Hostiles . | . . . . . . . . . Parts Melted . | . . . . . . . . . Heat Transferred . | . . . . . . . . . Parts Sabotaged . | . . . . . . . . . Parts Stolen . | . . . . . . . . . Parts Stripped . | . . . . . . . . . Power Chain Reactions . | . . . . . . . . . Alert | -11 -10 -9 -8 -7 -7 -6 -5 -4 ------- Run | Yrd Mat Mat Mat Fac DSF Fac Fac Fac Peak Influence 543 | . 30 136 102 46 47 249 458 543 Initial 224 | . . 12 57 46 32 24 116 224 Average 210 | . 11 68 83 46 33 127 236 386 Maximum Alert Level 2 | . . . . . . 1 2 2 Low Security (%) 57 | 100 100 100 100 100 100 85 56 . Level 1 29 | . . . . . . 14 36 62 Level 2 13 | . . . . . . . 6 37 Level 3 . | . . . . . . . . . Level 4 . | . . . . . . . . . Level 5 . | . . . . . . . . . High Security . | . . . . . . . . . Max Security . | . . . . . . . . . Squads Dispatched 8 | . . . . . . 3 1 4 Investigation 3 | . . . . . . 2 . 1 Extermination 1 | . . . . . . . . 1 Reinforcement 4 | . . . . . . 1 1 2 Assault . | . . . . . . . . . Garrison . | . . . . . . . . . Intercept . | . . . . . . . . . Searches Triggered 1 | . . . . . . . . 1 Construction Impeded . | . . . . . . . . . Haulers Reinforced . | . . . . . . . . . Active Scanning Responses . | . . . . . . . . . Cargo Convoy Interrupts . | . . . . . . . . . Stealth | -11 -10 -9 -8 -7 -7 -6 -5 -4 --------- Run | Yrd Mat Mat Mat Fac DSF Fac Fac Fac Distress Signals 2 | . 1 . . . . . 1 . Communications Jammed . | . . . . . . . . . Distress Signals . | . . . . . . . . . Times Spotted 97 | . 3 8 9 . 1 18 30 28 Peak Tracking Total 19 | . 4 8 8 . 2 7 19 10 Tactical Retreats 20 | . . 1 . . 1 4 7 7 Traps | -11 -10 -9 -8 -7 -7 -6 -5 -4 ------- Run | Yrd Mat Mat Mat Fac DSF Fac Fac Fac Traps Triggered 1 | . . . . . . 1 . . Indirectly . | . . . . . . . . . Trap Hack Attempts . | . . . . . . . . . Triggered . | . . . . . . . . . Disarmed . | . . . . . . . . . Reprogrammed . | . . . . . . . . . Reused . | . . . . . . . . . Traps Extracted . | . . . . . . . . . Installed . | . . . . . . . . . Triggered . | . . . . . . . . . Machines | -11 -10 -9 -8 -7 -7 -6 -5 -4 ---------- Run | Yrd Mat Mat Mat Fac DSF Fac Fac Fac Machines Disabled 1 | . . 1 . . . . . . Max in Single Turn 1 | . . 1 . . . . . . Machines Repaired . | . . . . . . . . . Machines Dismantled . | . . . . . . . . . Machines Sabotaged . | . . . . . . . . . Overloaded Fab Kills . | . . . . . . . . . Hacking | -11 -10 -9 -8 -7 -7 -6 -5 -4 --------- Run | Yrd Mat Mat Mat Fac DSF Fac Fac Fac Machines Accessed 15 | . . 3 . 1 . 4 4 3 Terminals 15 | . . 3 . 1 . 4 4 3 Fabricators . | . . . . . . . . . Repair Stations . | . . . . . . . . . Recycling Units . | . . . . . . . . . Scanalyzers . | . . . . . . . . . Garrison Access . | . . . . . . . . . Total Hacks 26 | . . 4 . 1 . 8 6 7 Successful 11 | . . 3 . 1 . 2 3 2 Failed 15 | . . 1 . . . 6 3 5 Catastrophic 7 | . . . . . . 3 1 3 Database Lockouts . | . . . . . . . . . Manual 15 | . . 3 . . . 2 3 7 Terminals 26 | . . 4 . 1 . 8 6 7 Fabricators . | . . . . . . . . . Repair Stations . | . . . . . . . . . Recycling Units . | . . . . . . . . . Scanalyzers . | . . . . . . . . . Garrison Access . | . . . . . . . . . Terminal Hacks 10 | . . 3 . 1 . 2 3 1 Open DSF 2 | . . . . 1 . . 1 . Level Access Points 2 | . . . . . . . 1 1 Branch Access Points 2 | . . 1 . . . 1 . . Emergency Access Points 1 | . . 1 . . . . . . Zone Layout 3 | . . 1 . . . 1 1 . Fabricator Hacks . | . . . . . . . . . Repair Station Hacks . | . . . . . . . . . Recycling Unit Hacks . | . . . . . . . . . Scanalyzer . | . . . . . . . . . Garrison Access Hacks . | . . . . . . . . . Unauthorized Hacks 1 | . . . . . . . . 1 Terminals 1 | . . . . . . . . 1 Assimilate 1 | . . . . . . . . 1 Fabricators . | . . . . . . . . . Repair Stations . | . . . . . . . . . Recycling Units . | . . . . . . . . . Scanalyzers . | . . . . . . . . . Garrison Access . | . . . . . . . . . Data Cores Recovered . | . . . . . . . . . Used . | . . . . . . . . . Hacking Detections 10 | . . 2 . . . 4 2 2 Full Trace Events 3 | . . . . . . 2 . 1 Feedback Events . | . . . . . . . . . Feedback Blocked . | . . . . . . . . . Robot Schematics Acquired . | . . . . . . . . . Robots Built . | . . . . . . . . . Authchips . | . . . . . . . . . Time . | . . . . . . . . . Total Robot Build Rating . | . . . . . . . . . Part Schematics Acquired . | . . . . . . . . . Parts Built . | . . . . . . . . . Authchips . | . . . . . . . . . Time . | . . . . . . . . . Total Part Build Rating . | . . . . . . . . . Parts Repaired . | . . . . . . . . . Time . | . . . . . . . . . Parts Recycled . | . . . . . . . . . Recycled Matter . | . . . . . . . . . Retrieved Matter . | . . . . . . . . . Retrieved Components . | . . . . . . . . . Parts Scanalyzed . | . . . . . . . . . Part Schematics Acquired . | . . . . . . . . . Parts Damaged . | . . . . . . . . . Bothacking | -11 -10 -9 -8 -7 -7 -6 -5 -4 ------------ Run | Yrd Mat Mat Mat Fac DSF Fac Fac Fac Used RIF Installer . | . . . . . . . . . Robots Hacked . | . . . . . . . . . Non-combat . | . . . . . . . . . Combat . | . . . . . . . . . Robot Hacks Applied . | . . . . . . . . . Relay Couplers Released . | . . . . . . . . . Fabnet Peak Effective % . | . . . . . . . . . Robots Rewired . | . . . . . . . . . Allies Hacked . | . . . . . . . . . Hacks Repelled . | . . . . . . . . . Allies | -11 -10 -9 -8 -7 -7 -6 -5 -4 -------- Run | Yrd Mat Mat Mat Fac DSF Fac Fac Fac Total Allies 1 | . . . . . . . . 1 Largest Group 1 | . . . . . . . . 1 Highest-Rated Group 45 | . . . . . . . . 45 Highest-Rated Ally 45 | . . . . . . . . 45 Total Orders . | . . . . . . . . . Ally Attacks . | . . . . . . . . . Total Damage . | . . . . . . . . . Kills . | . . . . . . . . . Allies Corrupted . | . . . . . . . . . Allies Melted . | . . . . . . . . . Intel | -11 -10 -9 -8 -7 -7 -6 -5 -4 ------- Run | Yrd Mat Mat Mat Fac DSF Fac Fac Fac Robot Analysis Total . | . . . . . . . . . Derelict Logs Recovered . | . . . . . . . . . Drone Launches . | . . . . . . . . . Drone Recoveries . | . . . . . . . . . Exploration | -11 -10 -9 -8 -7 -7 -6 -5 -4 ------------- Run | Yrd Mat Mat Mat Fac DSF Fac Fac Fac Turns Passed 1051 | 10 19 99 69 49 31 263 175 336 Spaces Moved 2149 | 20 38 189 112 93 62 569 408 658 Core 1178 | 20 38 189 112 93 62 118 50 496 Treads . | . . . . . . . . . Legs . | . . . . . . . . . Wheels . | . . . . . . . . . Hover . | . . . . . . . . . Flight 971 | . . . . . . 451 358 162 Fastest Speed 37 | 50 50 50 50 50 50 37 37 45 Average Speed 45 | 50 50 50 50 50 50 41 39 48 Slowest Speed 100 | 50 50 50 50 50 50 100 50 50 Overloaded Moves . | . . . . . . . . . Propulsion Burnouts . | . . . . . . . . . Robots Hopped 16 | . . . . . . 10 3 3 Cave-ins Triggered . | . . . . . . . . . Exploration Rate (%) 22 | 4 17 34 14 5 69 25 14 21 Regions Visited 8 Branch Regions . Pre-discovered Areas . | . . . . . . . . . Known Exits Taken 2 | . . . . 1 . . 1 . Unknown Exits Taken 5 | 1 1 1 1 . . 1 . . Scrap Searched . | . . . . . . . . . Spaces Dug 18 | . . 10 . . . 8 . . Terrain Destroyed 18 | . . 10 . . . 8 . . Melee . | . . . . . . . . . Projectile . | . . . . . . . . . AOE 18 | . . 10 . . . 8 . . Terrain Rammed . | . . . . . . . . . Walls Destroyed . | . . . . . . . . . Machines Disabled . | . . . . . . . . . Actions | -11 -10 -9 -8 -7 -7 -6 -5 -4 --------- Run | Yrd Mat Mat Mat Fac DSF Fac Fac Fac Total 2192 | 19 37 192 124 94 61 582 414 669 Wait . | . . . . . . . . . Move 2112 | 19 37 188 111 92 61 550 402 652 Hop 14 | . . . . . . 8 3 3 Pick Up 8 | . . 1 1 1 . 2 1 2 Fast Attach 9 | . . . . . . 2 6 1 Attach 5 | . . 1 . 1 . 2 . 1 Detach 1 | . . 1 . . . . . . Swap . | . . . . . . . . . Drop . | . . . . . . . . . Fire 2 | . . 1 . . . 1 . . Melee . | . . . . . . . . . Ram 24 | . . . 12 . . . 2 10 Kick . | . . . . . . . . . Crush . | . . . . . . . . . Escape Stasis 17 | . . . . . . 17 . . Rewire . | . . . . . . . . . Trap . | . . . . . . . . . Miscellaneous . | . . . . . . . . . Route ------- -11/Scrapyard -10/Materials -9/Materials (discovered 2 exits: [*Mat] / Min) -8/Materials -7/Factory -7/DSF -6/Factory (discovered 3 exits: *Fac / Low x2) -5/Factory (discovered 4 exits: *Fac x4) -4/Factory (discovered 6 exits: Res x4 / [*Upp] / [*Arm]) History --------- Turn | Location | Event 5 | -11/Scrapyard | Discovered new exit (range 12) 11 | -11/Scrapyard | Entered Materials 26 | -10/Materials | Discovered new exit (range 10) 30 | -10/Materials | Entered another Materials area 30 | -9/Materials | Evolved 2 slots: Propulsion x1, Utility x1 47 | -9/Materials | Identified exit to Mines 128 | -9/Materials | Discovered new exit (range 3) 129 | -9/Materials | Entered another Materials area 129 | -8/Materials | Evolved 2 slots: Propulsion x1, Utility x1 196 | -8/Materials | Discovered new exit (range 5) 197 | -8/Materials | Core integrity fell below 50% 198 | -8/Materials | Entered Factory 198 | -7/Factory | Evolved 2 slots: Utility x2 247 | -7/Factory | Identified exit to DSF 247 | -7/Factory | Entered DSF 273 | -7/DSF | Discovered new exit (range 11) 278 | -7/DSF | Additional patrols routed to DSF 278 | -7/DSF | Entered Factory 278 | -6/Factory | Evolved 2 slots: Propulsion x1, Utility x1 305 | -6/Factory | Build established: Mutant 378 | -6/Factory | Identified exit to Lower Caves 493 | -6/Factory | Spotted B-75 Beast 539 | -6/Factory | Discovered new exit (range 8) 541 | -6/Factory | Entered another Factory area 541 | -5/Factory | Evolved 2 slots: Propulsion x1, Utility x1 639 | -5/Factory | Build established: Hacker-Mutant 672 | -5/Factory | Identified exit to Factory 707 | -5/Factory | Core integrity fell below 50% 716 | -5/Factory | Core integrity fell below 20% 716 | -5/Factory | Entered another Factory area 716 | -4/Factory | Evolved 2 slots: Utility x2 799 | -4/Factory | Lost 6 parts (1n5u) 865 | -4/Factory | Core integrity fell below 50% 890 | -4/Factory | Core integrity fell below 20% 973 | -4/Factory | Discovered new exit (range 11) 993 | -4/Factory | Search patrols dispatched 997 | -4/Factory | Build established: Mutant 1018 | -4/Factory | Identified exit to Research 1048 | -4/Factory | Discovered new exit (range 16) 1052 | -4/Factory | Destroyed by P-70 Sage with High-powered Shock Rifle Last Messages --------------- 00973_ EXIT=FOUND 00976_ Acquired Field Propulsion Drive. 00980_ Slug penetrates K-01 Serf. 00980_ Slug penetrates Door. 00993_ ALERT: Heightened foreign activity detected, multiple search patrols dispatched. 01013_ ALERT: Security rotation in progress. 01018_ Connecting with Terminal... >>Access(Main) Found 4 level access points to Research: (132,20) (182,172) (188,49) (181,49) Map updated. 01024_ Door malfunctions. 01031_ Penetrated by Slug. 01034_ Acquired Stasis Canceller. 01037_ Penetrated by Slug. 01048_ EXIT=FOUND 01051_ Field Propulsion Drive destroyed. Map ----- +----------------------------------------------------+ | ?????????????????????????????????????????????????? | | ####?????????????????????????????????????????????? | | """ ?????????????????????????????????????????????? | | """ ?????????????????????????????????????????????? | | """ ?????????????????????????????????????????????? | | #????????????????????????????????????????????? | | #????????????????????????????????????????????? | | /#????????????????????????????????????????????? | | #????????????????????????????????????????????? | | #????????????????????????????????????????????? | | #####????????????????????????????????????????????? | | ??????????????????? ?????????????????????????????? | | ??#??##??????????## ?????????????????????????????? | | ?? #?????????# ????????????????????????????? | | ??""" #?????????# ???????????????????????????? | | ! T" #?????????# < ???????????????????????????? | | """ #?????????# ! ???????????????????????????? | | #????#####? ???????????????????????????? | | ?"" ?????# #?# #???????????????????????????? | | ?"" ?????#!! #?# #???????????????????????????? | | ??" ??????#/! #?# #???????????????????????????? | | ?? ?######/ #?# #???????????????????????????? | | ###+### ## ### ##??????????????????????????? | | = ## ! ## #??????????????????????????? | | ###### ## ## #####+#????????????????????? | | ###??## ####/### @ #????????????????????? | | #???# #####+#????????????????????? | | #???# p #??????????????????????????? | | T #???# #??????????????????????????? | | #???# ### #??????????????????????????? | | #??## ### #??????????????????????????? | | ####### ## #??????????????????????????? | | + ###### #??????????????????????????? | | """" # #????# #??????????????????????????? | | ""S"" #####????# #??????????????????????????? | | "" "" #????????########??????????????????????????? | | #??????????????????????????????????????????? | | #######??????????????????????????????????????????? | | "#???????????????????????????????????????????????? | | #???????????????????????????????????????????????? | | #???????????????????????????????????????????????? | | #???????????????????????????????????????????????? | | #####????????????????????????????????????????????? | | [ #????????????????????????????????????????????? | | #????????????????????????????????????????????? | | """#????????????????????????????????????????????? | | T"#????????????????????????????????????????????? | | """#????????????????????????????????????????????? | | #????????????????????????????????????????????? | | #####????????????????????????????????????????????? | +----------------------------------------------------+ Best States ------------- Heat Dissipation 43 Energy Generation 5 Energy Capacity 100 Matter Stores 267 Matter Capacity 300 Sight Range 16 Terrain Scan Density 10 Corruption Containment 48 Evasion (%) 62 Offensive Hacking 20 Item Schematics ----------------- None Robot Schematics ------------------ None Fabricated ------------ Nothing Alien Tech Used ----------------- None Achievements -------------- None Challenges ------------ None Game ------ Seed HoverCorruptionDeflector Manual? 0 Play Time 00:21:45 Cumulative 97.2 hours Start 2024.10.20 @ 23:10:22 End 2024.10.20 @ 23:27:54 Sessions 1 Manual Loads 0 Difficulty Rogue Special Mode None Game No. 122 Rogue 122 Adventurer 0 Explorer 0 Win Type - Total 13 Types 12/0/1/0/0/0/0/0/0 Lore% 36 Gallery% 48 Achievement% 50 Wizard Run 0 Options --------- Layout 0 ASCII 0 Keyboard 1 Movement Numpad Keybinds 0 Fullscreen 2 Font 18/SmallcapsGlow Map View 112x50 Zoom Use 0% Tactical HUD 1 Map Filters NONE Filters NONE Steam 1 RUN: f09289df-6fe5-42b9-9b0e-e75261a95b10